Workbook

Sheet Instructions
A6: Instructions
A8: 1.) Find a quiet place and allow yourself the full four hour exam period to practice. Treat this just as you would the real exam.
A10: 2.) Use the Navigator worksheet to see a brief description of each question, its point value and navigate between questions in your preferred order.
A12: 3.) Answer each question either to the side or below the grey question area.
A14: 4.) Use cell B1 on each question worksheet to mark whether you finished the question or not. You should use this feature to
A15: reflect your confidence in your answer. This way you'll know if you're on the money or your guesses were lucky.
A17: 5.) Grade each question harshly. It's better to put in extra reviewing time now than find the examiners aren't as generous as you hoped.
A18: Use increments of 0.25 when scoring; pay attention to the language used in the question and the point value. An "identify" question
A19: is likely 0.25 per item while an "explain" or "briefly justify" gets 0.25 for the item and another 0.25 for the justification.
A21: 6.) Enter your estimated score for each sub-part of a question in the box beneath the sub-part point value. They look like:
A23: 7.) Use the Point Grid to see your score and a breakdown of where you scored well and where you didn't.
A25: 8.) Find the top five questions where you lost the most points. These are the topics you need to review the most intensely in the
A26: next day or so.
A28: 9.) On the BattleActs site → Custom Battles → BattleCards - Prior Exams → Select this exam and mark the cards you got right and wrong.
A29: This allows your Battle Readiness Quotient (BRQ) to track your strengths and weaknesses.
A31: 10.) Use the Reset Exam button on the Point Grid worksheet to clear all of your work ready for a new attempt at this exam later.
A32: slay the beast

Sheet Formula Sheet (hidden)
A6: FORMULA SHEET
A8: • For the negative binomial distribution (for use on question 3):
B10: ○
B13: ○
A16: • For the shifted Pareto distribution (for use on questions 7, 13 & 15):
B18: ○
B21: ○
B24: ○
B27: ○

Sheet Point Grid
A5: 2016 Exam 8
B6: Total Point Value | C6: Sub-Part of Question | L6: Your Score | M6: Sub-Part of Question
A7: Question | C7: (a) | D7: (b) | E7: (c) | F7: (d) | G7: (e) | H7: (f) | I7: (g) | J7: Status | L7: Question | M7: (a) | N7: (b) | O7: (c) | P7: (d) | Q7: (e) | R7: (f) | S7: (g)
A8: 1 | B8: =SUM(C8:I8) -> 2.75 | C8: 2.75 | J8: =INDIRECT("'"&A8&"'!B1") -> Finished | L8: =A8 -> 1 | M8: =_xlfn.IFNA(IF(ISBLANK(INDEX(INDIRECT("'"&$L8&"'!$A:$A"),MATCH(M$7,INDIRECT("'"&$L8&"'!$A:$A"),0)+2)),"",INDEX(INDIRECT("'"&$L8&"'!$A:$A"),MATCH(M$7,INDIRECT("'"&$L8&"'!$A:$A"),0)+2)),"") -> 2.75
A9: 2 | B9: =SUM(C9:I9) -> 2 | C9: 0.5 | D9: 0.5 | E9: 1 | J9: =INDIRECT("'"&A9&"'!B1") -> Finished | L9: =A9 -> 2 | M9: 0.5 | N9: 0.5 | O9: 1
A10: 3 | B10: 2 | C10: 1 | D10: 1 | J10: Finished | L10: 3 | M10: 1 | N10: 1
A11: 4 | B11: 3 | C11: 1.5 | D11: 1 | E11: 0.5 | J11: Finished | L11: 4 | M11: 1.5 | N11: 1 | O11: 0.5
A12: 5 | B12: 2.25 | C12: 1.75 | D12: 0.5 | J12: Finished | L12: 5 | M12: 1.75 | N12: 0.5
A13: 6 | B13: 2.5 | C13: 0.75 | D13: 0.75 | E13: 1 | J13: Finished | L13: 6 | M13: 0.75 | N13: 0.75 | O13: 1
A14: 7 | B14: 1.5 | C14: 1 | D14: 0.25 | E14: 0.25 | J14: Finished | L14: 7 | M14: 1 | N14: 0.25 | O14: 0.25
A15: 8 | B15: 2.75 | C15: 1.25 | D15: 1.5 | J15: Finished | L15: 8 | M15: 1.25 | N15: 1.5
A16: 9 | B16: 1.5 | C16: 0.5 | D16: 0.5 | E16: 0.5 | J16: Finished | L16: 9 | M16: 0.5 | N16: 0.5 | O16: 0.5
A17: 10 | B17: 2.5 | C17: 2.5 | J17: Finished | L17: 10 | M17: 2.5
A18: 11 | B18: 3.75 | C18: 3 | D18: 0.75 | J18: Finished | L18: 11 | M18: =_xlfn.IFNA(IF(ISBLANK(INDEX(INDIRECT("'"&$L18&"'!$A:$A"),MATCH(M$7,INDIRECT("'"&$L18&"'!$A:$A"),0)+2)),"",INDEX(INDIRECT("'"&$L18&"'!$A:$A"),MATCH(M$7,INDIRECT("'"&$L18&"'!$A:$A"),0)+2)),"") -> 3 | N18: 0.75
A19: 12 | B19: 2.5 | C19: 1.5 | D19: 0.25 | E19: 0.75 | J19: Finished | L19: 12 | M19: 1.5 | N19: 0.25 | O19: 0.75
A20: 13 | B20: 2.5 | C20: 1.25 | D20: 1.25 | J20: Finished | L20: 13 | M20: 1.25 | N20: 1.25
A21: 14 | B21: 1.75 | C21: 0.5 | D21: 0.5 | E21: 0.75 | J21: Finished | L21: 14 | M21: 0.5 | N21: 0.5 | O21: 0.75
A22: 15 | B22: 1.75 | C22: 1.25 | D22: 0.5 | J22: Finished | L22: 15 | M22: 1.25 | N22: 0.5
A23: 16 | B23: 3.75 | C23: 2.75 | D23: 1 | J23: Finished | L23: 16 | M23: 2.75 | N23: 1
A24: 17 | B24: 2.5 | C24: 1 | D24: 1 | E24: 0.5 | J24: Finished | L24: 17 | M24: 1 | N24: 1 | O24: 0.5
A25: 18 | B25: =SUM(C25:I25) -> 2 | C25: 1 | D25: 1 | J25: Finished | L25: =A25 -> 18 | M25: 1 | N25: 1
A26: 19 | B26: 3 | C26: 3 | J26: Finished | L26: 19 | M26: 3
A27: 20 | B27: 3 | C27: 0.75 | D27: 2.25 | J27: Finished | L27: 20 | M27: 0.75 | N27: 2.25
A28: 21 | B28: 4 | C28: 4 | J28: Finished | L28: 21 | M28: 4
A30: Total | B30: =SUM(B8:B28) -> 53.25 | L30: TOTAL | M30: =IF(SUM(IF(M8:S28="",0,1))=0,"",SUM(M8:S28)) -> 53.25 | O30: Percentage: | P30: =IF(M30="","",M30/B30) -> 1
L32: Passing Score: | M32: 37.25

Sheet Navigator
A6: Navigator – Select a question to go to it
A8: Question # | H8: Status
A9: Q1 -- Bailey & Simon -- Individual Risk Variation -- 2.75 points | H9: ='Point Grid'!J8 -> Finished
A10: Q2 -- Robertson -- Clustering Theory -- 2.00 points | H10: ='Point Grid'!J9 -> Finished
A11: Q3 -- ASOP 12 -- Application -- 2.00 points | H11: ='Point Grid'!J10 -> Finished
A12: Q4 -- Goldburd (GLM) -- Model Selection -- 3.00 points | H12: ='Point Grid'!J11 -> Finished
A13: Q5 -- Goldburd (GLM) -- Lorenz Curves & Gini Coefficients -- 2.25 points | H13: ='Point Grid'!J12 -> Finished
A14: Q6 -- Goldburd (GLM) -- Renewal Models --2.50 points | H14: ='Point Grid'!J13 -> Finished
A15: Q7 -- Goldburd (GLM) -- AIC & BIC -- 1.50 points | H15: ='Point Grid'!J14 -> Finished
A16: Q8 -- Bahnemann -- Adverse Selection in ILFs -- 2.75 points | H16: ='Point Grid'!J15 -> Finished
A17: Q9 -- Fisher -- Experience Modifications -- 1.50 points | H17: ='Point Grid'!J16 -> Finished
A18: Q10 -- NCCI 1 -- Experience Modification -- 2.50 points | H18: ='Point Grid'!J17 -> Finished
A19: Q11 -- Fisher -- Quintiles & Efficiency Tests -- 3.75 points | H19: ='Point Grid'!J18 -> Finished
A20: Q12 -- Fisher -- Table M -- 2.50 points | H20: ='Point Grid'!J19 -> Finished
A21: Q13 -- Fisher -- Converted Insurance Charge -- 2.50 points | H21: ='Point Grid'!J20 -> Finished
A22: Q14 -- Fisher -- Per-Occurrence and Aggregate Overlap -- 1.75 points | H22: ='Point Grid'!J21 -> Finished
A23: Q15 -- Fisher -- Large Dollar Deductible Rating -- 1.75 points | H23: ='Point Grid'!J22 -> Finished
A24: Q16 -- Fisher -- Large Dollar Deductible Rating -- 3.75 points | H24: ='Point Grid'!J23 -> Finished
A25: Q17 -- Couret & Venter -- Multi-Dimensional Credibility -- 2.50 points | H25: ='Point Grid'!J24 -> Finished
A26: Q18 -- Grossi -- Epistemic & Aleatory Risk -- 2.00 points | H26: ='Point Grid'!J25 -> Finished
A27: Q19 -- Clark -- Reinsurance & Return on Capital -- 3.00 points | H27: ='Point Grid'!J26 -> Finished
A28: Q20 -- Grossi -- Reinstatement Premiums -- 3.00 points | H28: ='Point Grid'!J27 -> Finished
A29: Q21 -- Bernegger -- Expected Ceded Loss Ratio -- 4.00 points | H29: ='Point Grid'!J28 -> Finished

Sheet 1
A1: 1 | B1: Finished | G1: Navigator | J1: Solution
I2: (a) | J2: From the Bailey and Simon paper we know there is limited variation in the
A3: Points | B3: A group of insureds have different expected claim frequencies. The number of insureds claim-free | J3: group of insured's chance of an accident if the credibility is proportional to
A4: =INDEX('Point Grid'!B:B,MATCH('1'!A1,'Point Grid'!A:A,0)) -> 2.75 | B4: for the past t years is as follows: | J4: the number of years of experience.
B6: Expected Claim Frequency | J6: Expected Claims
C7: t = 0 | D7: t = 1 | E7: t = 2 | F7: t = 3 | J7: Group | K7: t = 0 | L7: t = 1 | M7: t = 2 | N7: t = 3
B8: 0.05 | C8: 50000 | D8: 47500 | E8: 45000 | F8: 44000 | J8: 0.05 | K8: =$J8*C8 -> 2500 | L8: =$J8*D8 -> 2375 | M8: 2250 | N8: 2200
B9: 0.1 | C9: 50000 | D9: 45000 | E9: 43000 | F9: 36000 | J9: 0.1 | K9: =$J9*C9 -> 5000 | L9: 4500 | M9: 4300 | N9: 3600
B10: 0.2 | C10: 25000 | D10: 20500 | E10: 16500 | F10: 14000 | J10: 0.2 | K10: 5000 | L10: 4100 | M10: 3300 | N10: 2800
B11: Total | C11: =SUM(C8:C10) -> 125000 | D11: =SUM(D8:D10) -> 113000 | E11: =SUM(E8:E10) -> 104500 | F11: =SUM(F8:F10) -> 94000 | J11: Total | K11: =SUM(K8:K10) -> 12500 | L11: =SUM(L8:L10) -> 10975 | M11: 9850 | N11: 8600
A13: (a) | B13: Determine whether the variation of an individual insured's chance for an accident changes over time. | J13: Average | K13: t = 0 | L13: t = 1 | M13: t = 2 | N13: t = 3
A14: =INDEX('Point Grid'!$C$8:$I$30,MATCH($A$1,'Point Grid'!$A$8:$A$30,0),MATCH(A13,'Point Grid'!$C$7:$I$7,0)) -> 2.75 | J14: Frequency | K14: =K11/C11 -> 0.1 | L14: =L11/D11 -> 0.09712389381 | M14: 0.09425837321 | N14: 0.0914893617
A15: 2.75 | J15: at time t
J16: (all groups)
J18: Frequency Relative to t = 0
K19: t = 0 | L19: t = 1 | M19: t = 2 | N19: t = 3
K20: =K14/$K$14 -> 1 | L20: =L14/$K$14 -> 0.9712389381 | M20: 0.9425837321 | N20: 0.914893617
J22: We set the experience modification equal to the relative frequency.
J23: The question tells us the number of insured's that are claim-free for the past t-years.
J24: So we know R = 0 when t > 0.
J25: Experience Mod = Z*R + (1 - Z)*1 = 1 - Z when t > 0.
J27: From here we solve for the credibility at each time t > 0.
J28: Credibility at time t.
L29: t = 1 | M29: t = 2 | N29: t = 3
L30: =1-L20 -> 0.02876106195 | M30: 0.05741626794 | N30: 0.08510638298
J31: Re-basing relative to t = 1.
L32: t = 1 | M32: t = 2 | N32: t = 3
L33: =L30/$L$30 -> 1 | M33: =M30/$L$30 -> 1.99631947 | N33: 2.95908347
J34: Since these ratios are approximately 1, 2, 3 we conclude there is limited variation
J35: in the insured's chance of an accident changing over time.

Sheet 2
A1: 2 | B1: Finished | H1: Navigator | K1: Solution
J2: (a) | K2: To group classes of insureds with similar risk characteristics and/or expected costs
A3: Points | K3: into larger homogeneous groups that have sufficient volume for credible ratemaking.
A4: =INDEX('Point Grid'!B:B,MATCH('2'!A1,'Point Grid'!A:A,0)) -> 2 | K4: The clustering should maximize the variance between classes and minimize the
A5: (a) | B5: Describe the purpose of clustering as it pertains to risk classification. | K5: variance within classes.
A6: =INDEX('Point Grid'!$C$8:$I$30,MATCH($A$1,'Point Grid'!$A$8:$A$30,0),MATCH(A5,'Point Grid'!$C$7:$I$7,0)) -> 0.5
A7: 0.5 | J7: (b) | K7: Hierarchical clustering means new clusters are formed from a single originating
K8: cluster, i.e. the clusters are nested.
A9: (b) | B9: Briefly contrast hierarchical and non-hierarchical clustering methods. | K9: Non-hierarchical clustering doesn't have this restriction, so new clusters can be
A10: =INDEX('Point Grid'!$C$8:$I$30,MATCH($A$1,'Point Grid'!$A$8:$A$30,0),MATCH(A9,'Point Grid'!$C$7:$I$7,0)) -> 0.5 | K10: formed by selecting classes from multiple distinct clusters.
A11: 0.5
J12: (c) | K12: Credibility: As you increase the number of clusters, each one becomes smaller.
A13: (c) | B13: An insurer wants to increase the number of groupings for a particular class within their classification plan. | K13: This improves homogeneity but it's then possible the cluster will lack credibility
A14: =INDEX('Point Grid'!$C$8:$I$30,MATCH($A$1,'Point Grid'!$A$8:$A$30,0),MATCH(A13,'Point Grid'!$C$7:$I$7,0)) -> 1 | B14: According to Actuarial Standards of Practice No. 12, "Risk Classification", describe two considerations in | K14: to be useful.
A15: 1 | B15: using hierarchical or non-hierarchical clustering methods to determine the groupings. | K15: Expense: The cost of increasing the number of groupings (e.g. upgrading IT systems,
K16: analysis, training etc.) should not be more than the estimated benefit of
K17: implementing the new groupings.

Sheet 3
A1: 3 | B1: Finished | F1: Navigator | H1: Solution
G2: (a) | H2: Credibility: Since there are only two channels and an insured must come through one of
A3: Points | B3: A private passenger automobile insurer sells policies through two distribution channels: | H3: them, it is likely that both channels are large enough to produce credible predictions.
A4: =INDEX('Point Grid'!B:B,MATCH('3'!A1,'Point Grid'!A:A,0)) -> 2 | B4: independent insurance agents and directly to consumers via the internet. | H4: Absence of Ambiguity: Each channel is clearly defined and easy to determine which route
H5: an insured came from. Further, the channels are mutually independent.
B6: The company's rates already incorporate expense differentials between the two channels but
B7: the head of sales has asked their actuary to file different pure premium factors for the two | G7: (b) | H7: Public Acceptability: It is unclear how the insured's choice of distribution channel
B8: groups. | H8: is related to their loss potential.
H9: Manipulation: If an insured knows they can obtain a better rate through one channel or
B10: The actuary wishes to evaluate the acceptability of the request against Actuarial Standard of | H10: the other, they can change their channel to obtain preferred pricing.
B11: Practice No. 12 (Risk Classification).
A13: (a) | B13: Identify and briefly describe two considerations supporting inclusion of distribution channel in
A14: =INDEX('Point Grid'!$C$8:$I$30,MATCH($A$1,'Point Grid'!$A$8:$A$30,0),MATCH(A13,'Point Grid'!$C$7:$I$7,0)) -> 1 | B14: the pure premium factors.
A15: 1
A17: (b) | B17: Identify and briefly describe two considerations against inclusion of distribution channel in the
A18: =INDEX('Point Grid'!$C$8:$I$30,MATCH($A$1,'Point Grid'!$A$8:$A$30,0),MATCH(A17,'Point Grid'!$C$7:$I$7,0)) -> 1 | B18: pure premium factors.
A19: 1

Sheet 4
A1: 4 | B1: Finished | G1: Navigator | I1: Solution
H2: (a) | I2: i. Including the limit of liability in a GLM can lead to unexpected results such as a
A3: Points | B3: An actuary is conducting a generalized linear model (GLM) analysis on historical personal | I3: lower rate for more coverage. This can be because of favourable selection.
A4: =INDEX('Point Grid'!B:B,MATCH('4'!A1,'Point Grid'!A:A,0)) -> 3 | B4: automobile data in order to develop a rating plan. | I4: ii. The number of coverage changes during the current policy period will not be available
I5: at inception. Further, the number is likely to be different from year to year which
A6: (a) | B6: Argue against the following factors being included as predictors in the actuary's GLM analysis: | I6: will dilute its usefulness as a predictor.
A7: =INDEX('Point Grid'!$C$8:$I$30,MATCH($A$1,'Point Grid'!$A$8:$A$30,0),MATCH(A6,'Point Grid'!$C$7:$I$7,0)) -> 1.5 | B7: i. Limit of liability | I7: iii. There are likely too many ZIP codes in the data set to have credible data. A GLM
A8: 1.5 | B8: ii. Number of coverage changes during the current policy period. | I8: assumes the underlying data is fully credible. Further, since there are a lot of ZIP
B9: iii. ZIP code of the garaging location of the automobile. | I9: codes, the model will have too many degrees of freedom which will likely cause
I10: overfitting.
A11: (b) | B11: The actuary is modelling pure premium with a log-link function and a Tweedie error distribution
A12: =INDEX('Point Grid'!$C$8:$I$30,MATCH($A$1,'Point Grid'!$A$8:$A$30,0),MATCH(A11,'Point Grid'!$C$7:$I$7,0)) -> 1 | B12: (1 < p < 2). Provide two arguments against the inclusion of deductible as a predictor in the actuary's | H12: (b) | I12: Deductibles should lower frequency by excluding small losses below the deductible.
A13: 1 | B13: GLM analysis. | I13: As a result, they increase the average severity. This means frequency and severity do not
I14: move in the same direction, which is an assumption of the Tweedie error model.
A15: (c) | B15: Other than including deductible as a predictor in the GLM, describe how to determine deductible | I15: Including deductibles in the GLM can produce counterintuitive results such as higher
A16: =INDEX('Point Grid'!$C$8:$I$30,MATCH($A$1,'Point Grid'!$A$8:$A$30,0),MATCH(A15,'Point Grid'!$C$7:$I$7,0)) -> 0.5 | B16: relativities and how such relativities can be incorporated in a GLM. | I16: relativities for higher deductibles. This can be because of reasons beyond loss
A17: 0.5 | I17: elimination such as underwriters requiring insureds perceived to be riskier to carry a
I18: higher deductible.
H20: (c) | I20: Deductibles should be determined using a mixture of experience and exposure rating
I21: and then included in the GLM model via an offset.

Sheet 5
A1: 5 | B1: Finished | F1: Navigator | H1: Solution
G2: (a) | H2: Rank the risks by model predicted loss in increasing order.
A3: Points | B3: A GLM has been used to develop an insurance rating plan. The results are given below: | K3: Cumulative | M3: Cumulative
A4: =INDEX('Point Grid'!B:B,MATCH('5'!A1,'Point Grid'!A:A,0)) -> 2.25 | H4: Rank | I4: Risk | J4: Model | K4: % Exposure | L4: Actual | M4: % Actual Loss
B5: Risk | C5: Model Predicted Loss | D5: Actual Loss | H5: 0 | I5: 0 | J5: 0 | K5: 0 | L5: 0 | M5: 0
B6: 1 | C6: 2000 | D6: 2050 | H6: 1 | I6: 5 | J6: =INDEX($C$6:$C$10,MATCH(I6,$B$6:$B$10,0)) -> 200 | K6: =COUNT(I6:$I$6)/COUNT($I$6:$I$10) -> 0.2 | L6: =INDEX($D$6:$D$10,MATCH(I6,$B$6:$B$10,0)) -> 400 | M6: =SUM(L6:$L$6)/$L$11 -> 0.08
B7: 2 | C7: 500 | D7: 220 | H7: 2 | I7: 2 | J7: =INDEX($C$6:$C$10,MATCH(I7,$B$6:$B$10,0)) -> 500 | K7: =COUNT(I$6:$I7)/COUNT($I$6:$I$10) -> 0.4 | L7: =INDEX($D$6:$D$10,MATCH(I7,$B$6:$B$10,0)) -> 220 | M7: =SUM(L$6:$L7)/$L$11 -> 0.124
B8: 3 | C8: 1500 | D8: 1480 | H8: 3 | I8: 4 | J8: 800 | K8: =COUNT(I$6:$I8)/COUNT($I$6:$I$10) -> 0.6 | L8: 850 | M8: =SUM(L$6:$L8)/$L$11 -> 0.294
B9: 4 | C9: 800 | D9: 850 | H9: 4 | I9: 3 | J9: 1500 | K9: =COUNT(I$6:$I9)/COUNT($I$6:$I$10) -> 0.8 | L9: 1480 | M9: =SUM(L$6:$L9)/$L$11 -> 0.59
B10: 5 | C10: 200 | D10: 400 | H10: 5 | I10: 1 | J10: 2000 | K10: =COUNT(I$6:$I10)/COUNT($I$6:$I$10) -> 1 | L10: 2050 | M10: =SUM(L$6:$L10)/$L$11 -> 1
H11: Total | J11: =SUM(J6:J10) -> 5000 | L11: =SUM(L6:L10) -> 5000
A12: (a) | B12: Plot the Lorenz curve for this rating plan. Label each axis and the coordinates of each point
A13: =INDEX('Point Grid'!$C$8:$I$30,MATCH($A$1,'Point Grid'!$A$8:$A$30,0),MATCH(A12,'Point Grid'!$C$7:$I$7,0)) -> 1.75 | B13: on the curve.
A14: 1.75
A16: (b) | B16: Briefly describe how the Gini index is calculated and what the Gini index measures when
A17: =INDEX('Point Grid'!$C$8:$I$30,MATCH($A$1,'Point Grid'!$A$8:$A$30,0),MATCH(A16,'Point Grid'!$C$7:$I$7,0)) -> 0.5 | B17: applied to an insurance rating program. Do not calculate the Gini index.
A18: 0.5
G28: (b) | H28: The Gini index is twice the area between the line of equality and the Lorenz curve.
H29: The line of equality is a straight line from (0,0) to (1,1).
H30: The Gini index measures the ability of the rating plan to differentiate between the best
H31: and the worst risks. A higher Gini index says the plan has greater predictive power.

Sheet 6
A1: 6 | B1: Finished | G1: Navigator | I1: Solution
H2: (a) | I2: ln(μ) = 0.91 + 0.013*4 + -0.187*ln(25000) + 0.062*8
A3: Points | B3: An actuary has constructed a three-variable Tweedie GLM with a log-link function to estimate loss | I3: ln(μ) = | J3: =0.91 + 0.013*4 + -0.187*LN(25000) + 0.062*8 -> -0.4356800164
A4: =INDEX('Point Grid'!B:B,MATCH('6'!A1,'Point Grid'!A:A,0)) -> 2.5 | B4: ratios for commercial property new business. The actuary wants to create a second model for renewal | I4: The modelled loss ratio, μ, is | L4: =EXP(J3) -> 0.6468246661
B5: business that will include all of the variables from the new business model, plus a variable for the prior
B6: year claim count. The actuary requires that the coefficients of the variables (Average Building Age, | H6: (b) | I6: The renewal model may be written as
B7: log(Manual Premium), and Location Count) are consistent between the new and renewal models. | I7: ln(μ) = β0 + 0.013*(age) + -0.187*(logprem) + 0.062*(loccnt) + β4*(priorYears)
I8: To produce the renewal model we need to estimate the β4 parameter and
B9: The fitted new business model parameters are as follows: | I9: re-estimate the intercept, β0.
B10: Variable | D10: Name | E10: Estimate
D11: Intercept | E11: 0.91 | H11: (c) | I11: Cross-validation: Split the data into k parts, run the model on (k-1) parts and then
B12: Average Building Age (Years) | D12: age | E12: 0.013 | I12: validate the result on the kth part. Iterate k times and compare how similar the
B13: log(Manual Premium) | D13: logprem | E13: -0.187 | I13: estimates are across the k iterations to assess the variable stability.
B14: Location Count | D14: loccnt | E14: 0.062 | I14: Cook's Distance: Sort the observations in the data set according to their Cook's
I15: Distance value (higher values have more influence on the model). Systematically
A16: (a) | B16: Calculate the modeled loss ratio for a new business policy with a manual premium of $25,000, an | I16: remove some of the more influential observations and re-run the model to
A17: =INDEX('Point Grid'!$C$8:$I$30,MATCH($A$1,'Point Grid'!$A$8:$A$30,0),MATCH(A16,'Point Grid'!$C$7:$I$7,0)) -> 0.75 | B17: average building age of four years, and having eight locations. | I17: see if the estimated parameters change significantly.
A18: 0.75
A20: (b) | B20: Briefly describe how to produce the renewal business model, and specify the resulting equation for
A21: =INDEX('Point Grid'!$C$8:$I$30,MATCH($A$1,'Point Grid'!$A$8:$A$30,0),MATCH(A20,'Point Grid'!$C$7:$I$7,0)) -> 0.75 | B21: the renewal business modeled loss ratio.
A22: 0.75
A24: (c) | B24: Identify and briefly describe two techniques that the actuary can use to assess the stability of the new
A25: =INDEX('Point Grid'!$C$8:$I$30,MATCH($A$1,'Point Grid'!$A$8:$A$30,0),MATCH(A24,'Point Grid'!$C$7:$I$7,0)) -> 1 | B25: variable in the renewal business model.
A26: 1

Sheet 7
A1: 7 | B1: Finished | G1: Navigator | J1: Solution
I2: (a) | J2: AIC = -2*log-likelihood + 2*(# parameters)
A3: Points | B3: A company is considering modifying its rating plan to include factors by age | J3: BIC = -2*log-likelihood + p*ln(n)
A4: =INDEX('Point Grid'!B:B,MATCH('7'!A1,'Point Grid'!A:A,0)) -> 1.5 | B4: group. Below are statistics for the base model and for the new model.
J5: Base model
B6: Statistic | C6: Base Model | D6: New Model | J6: AIC = -2*(-750) + 2*10 = | M6: =-2*C7+2*C9 -> 1520
B7: Log-likelihood | C7: -750 | D7: -737.5 | J7: BIC = -2*(-750) + 10*ln(1,000,000) = | N7: =-2*C7+10*LN(C10) -> 1638.155106
B8: Deviance | C8: 500 | D8: 475
B9: Parameters | C9: 10 | D9: 15 | J9: New Model
B10: Data points | C10: 1000000 | D10: 1000000 | J10: AIC = -2*(-737.5) + 2*15 = | M10: =-2*D7+2*D9 -> 1505
J11: BIC = -2*(-737.5) + 15*ln(1,000,000) = | N11: =-2*D7+D9*LN(D10) -> 1682.232658
A12: (a) | B12: Calculate the Akaike Information Criterion (AIC) and the Bayesian Information
A13: =INDEX('Point Grid'!$C$8:$I$30,MATCH($A$1,'Point Grid'!$A$8:$A$30,0),MATCH(A12,'Point Grid'!$C$7:$I$7,0)) -> 1 | B13: Criterion (BIC) for both models. | I13: (b) | J13: The BIC measure penalizes more when there are a large number of data points as is the case here.
A14: 1 | J14: The AIC measure is generally preferred in this situation as BIC may cause predictive variables to be
J15: excluded.
A16: (b) | B16: Explain whether AIC or BIC is a more reliable test statistic as an indicator of
A17: =INDEX('Point Grid'!$C$8:$I$30,MATCH($A$1,'Point Grid'!$A$8:$A$30,0),MATCH(A16,'Point Grid'!$C$7:$I$7,0)) -> 0.25 | B17: whether to adopt the new model. | I17: (c) | J17: The AIC for the new model is lower than the AIC for the base model. Therefore, adopt the new model.
A18: 0.25
A20: (c) | B20: Recommend and briefly justify whether to adopt the new model.
A21: =INDEX('Point Grid'!$C$8:$I$30,MATCH($A$1,'Point Grid'!$A$8:$A$30,0),MATCH(A20,'Point Grid'!$C$7:$I$7,0)) -> 0.25
A22: 0.25

Sheet 8
A1: 8 | B1: Finished | G1: Navigator | I1: Solution
H2: (a) | I2: To determine whether anti-selection is present we can compare the ILFs for the individual policy
A3: Points | B3: Given the following average severity, an actuary wants to validate if anti-selection | I3: limits with those obtained using all available policy limits.
A4: =INDEX('Point Grid'!B:B,MATCH('8'!A1,'Point Grid'!A:A,0)) -> 2.75 | B4: impacts its Increased Limits Factors for a given insurance coverage:
D5: Policy Limit | I5: All Policy Limits ILFs | L5: $25k Policy Limit ILFs | O5: $50k Policy Limit ILFs
C6: Severity limited to: | D6: 25000 | E6: 50000 | I6: 10000 | J6: =SUM(D7:E7)/SUM($D$7:$E$7) -> 1 | L6: 10000 | M6: =D7/$D$7 -> 1 | O6: 10000 | P6: =E7/$E$7 -> 1
C7: 10000 | D7: 4000 | E7: 6000 | I7: 25000 | J7: =SUM(D8:E8)/SUM($D$7:$E$7) -> 1.45 | L7: 25000 | M7: =D8/$D$7 -> 1.625 | O7: 25000 | P7: =E8/$E$7 -> 1.333333333
C8: 25000 | D8: 6500 | E8: 8000 | I8: 50000 | J8: 1.95 | L8: 50000 | M8: 2.25 | O8: 50000 | P8: 1.75
C9: 50000 | D9: 9000 | E9: 10500
I10: It is clear the ILFs under the two individual policy limits are significantly different than those
B11: 50% of the policies have a $25,000 policy limit and 50% of the policies have a $50,000 | I11: obtained using all available data. This implies anti-selection is present as they should be
B12: policy limit. | I12: (approximately) equal otherwise.
A14: (a) | B14: Demonstrate if anti-selection impacts the ILFs. | H14: (b) | I14: Adverse Selection:
A15: =INDEX('Point Grid'!$C$8:$I$30,MATCH($A$1,'Point Grid'!$A$8:$A$30,0),MATCH(A14,'Point Grid'!$C$7:$I$7,0)) -> 1.25 | I15: The higher limits generate higher ILFs because higher risk insureds choose higher policy limits.
A16: 1.25 | I16: This could be because the more risky insureds are aware of their riskiness and choose high limits
I17: to protect themselves.
A18: (b) | B18: Identify and briefly describe two possible forms of anti-selection for ILFs and give one
A19: =INDEX('Point Grid'!$C$8:$I$30,MATCH($A$1,'Point Grid'!$A$8:$A$30,0),MATCH(A18,'Point Grid'!$C$7:$I$7,0)) -> 1.5 | B19: example for each. | I19: Favourable Selection:
A20: 1.5 | I20: The higher limits generate lower ILFs. This can be because good risks with a large amount of
I21: assets to protect will choose higher limits to get that protection, even though they are not
I22: riskier than others.

Sheet 9
A1: 9 | B1: Finished | I1: Navigator | K1: Solution
J2: (a) | K2: The underwriter should consider whether the risk is a good fit for the class it is in as an
A3: Points | B3: An actuary and an underwriter are discussing a Workers' Compensation book of business. | K3: increased experience modifier doesn't necessarily imply a bad risk. Since the predominant
A4: =INDEX('Point Grid'!B:B,MATCH('9'!A1,'Point Grid'!A:A,0)) -> 1.5 | K4: risk in the class has had a decreasing modifier, the risk under consideration could receive an
K5: increased experience modifier due to random fluctuations if it is not a good fit for the class.
A6: (a) | B6: The underwriter is considering not renewing a risk in the book because the experience | K6: The underwriter should check the standard loss ratios for the risks in the classes to see if
A7: =INDEX('Point Grid'!$C$8:$I$30,MATCH($A$1,'Point Grid'!$A$8:$A$30,0),MATCH(A6,'Point Grid'!$C$7:$I$7,0)) -> 0.5 | B7: modifier of the account has increased. The underwriter notes that the expected loss ratio | K7: the experience modifications are appropriate as the standard loss ratios should be similar
A8: 0.5 | B8: (ELR) for the predominant class code on the account has decreased over the last three years. | K8: for all credit and debit risks in the book of business. If this is true then the underwriter
B9: Discuss whether the underwriter should non-renew the risk given the change in ELR. | K9: should renew the risk.
A11: (b) | B11: A different account had large losses last year and now has a debit modification. | J11: (b) | K11: The underwriter's reasoning is poor. A debit mod is not supposed to help the current
A12: =INDEX('Point Grid'!$C$8:$I$30,MATCH($A$1,'Point Grid'!$A$8:$A$30,0),MATCH(A11,'Point Grid'!$C$7:$I$7,0)) -> 0.5 | B12: The underwriter wants to renew this account since the debit mod will help recoup losses. | K12: premium recoup prior losses. Instead it should reflect knowledge about the future
A13: 0.5 | B13: Evaluate the underwriter's reasoning to renew the account. | K13: expected losses in the policy period. The underwriter should renew the account
K14: knowing that adequate rates are being charged for future losses.
A15: (c) | B15: The underwriter points out that the book of business has an overall experience modifier
A16: =INDEX('Point Grid'!$C$8:$I$30,MATCH($A$1,'Point Grid'!$A$8:$A$30,0),MATCH(A15,'Point Grid'!$C$7:$I$7,0)) -> 0.5 | B16: below 1.0 and believes this is due to superior risk selection. Provide two reasons why this | J16: (c) | K16: • The book may have a number of small risks that do not qualify for experience rating or
A17: 0.5 | B17: may not be the case. | K17: receive limited credibility. This results in mods that are either 1 or close to 1 in the off-balance
K18: calculation, which decreases the average experience mod for the book.
K19: • The experience mod is not a predictor of plan performance. After the mod is applied, all
K20: risks should be equal. It is possible the manual rates were set too high and so the experience
K21: mods being lower than 1 on average are correcting for this.

Sheet 10
A1: 10 | B1: Finished | H1: Navigator | J1: Solution
I2: (a) | J2: Look up the class code in the tables provided to get the ELR and D-ratio.
A3: Points | B3: An insured is subject to experience rating under the National Council on Compensation | J3: ELR = | K3: =C25 -> 2.02
A4: =INDEX('Point Grid'!B:B,MATCH('10'!A1,'Point Grid'!A:A,0)) -> 2.5 | B4: Insurance (NCCI)'s Experience Rating Plan Manual for Workers' Compensation and | J4: D-Ratio = | K4: =D25 -> 0.17
B5: Employers Liability Insurance. The following information about the insured is given:
J6: Expected Unlimited Loss = (Payroll/$100)*ELR = | O6: =B7/100*K3 -> 101000
B7: 5000000 | C7: Payroll (Experience Period) | J7: Expected Excess Loss = Expected Unlimited Loss *(1 - D-ratio) = | P7: =O6*(1-K4) -> 83830
B8: Alabama | C8: State
B9: 7705 | C9: Class | J9: Look up the expected unlimited loss in the table to get the weight and ballast values.
J10: W = | K10: =C32 -> 0.14
B11: The following claims apply to the experience period. Each claim involves only one person, | J11: B = | K11: =F32 -> 28000
B12: and none are disease claims:
B13: Claim Number | C13: Type | D13: Loss | J13: Compute the actual primary and actual excess loss experience.
B14: 1 | C14: Indemnity | D14: 29000 | J14: Claim | K14: Primary | L14: Excess
B15: 2 | C15: Medical | D15: 30500 | J15: 1 | K15: =IF(C14="Medical",0.3,1)*MIN(D14,5000) -> 5000 | L15: =IF(C14="Medical",0.3,1)*MAX(0,D14-5000) -> 24000
B16: 3 | C16: Indemnity | D16: 90000 | J16: 2 | K16: =IF(C15="Medical",0.3,1)*MIN(D15,5000) -> 1500 | L16: =IF(C15="Medical",0.3,1)*MAX(0,D15-5000) -> 7650
B17: 4 | C17: Indemnity | D17: 1500 | J17: 3 | K17: 5000 | L17: 85000
B18: 5 | C18: Medical | D18: 45000 | J18: 4 | K18: 1500 | L18: 0
J19: 5 | K19: 1500 | L19: 12000
A20: (a) | B20: Calculate the experience modification for this insured. | J20: Total | K20: =SUM(K15:K19) -> 14500 | L20: =SUM(L15:L19) -> 128650
A21: =INDEX('Point Grid'!$C$8:$I$30,MATCH($A$1,'Point Grid'!$A$8:$A$30,0),MATCH(A20,'Point Grid'!$C$7:$I$7,0)) -> 2.5 | B21: You may use the information given in the tables below.
A22: 2.5
B23: Class Code | C23: ELR | D23: D Ratio
B24: 7704 | C24: 1.41 | D24: 0.13 | J24: Mod = | K24: =(K20+K10*L20+(1-K10)*P7+K11)/(O6+K11) -> 1.027944186
B25: 7705 | C25: 2.02 | D25: 0.17
B26: 7710 | C26: 1.41 | D26: 0.13
B28: Expected | C28: Weighting | E28: Expected | F28: Ballast Value
B29: Losses | C29: Value | E29: Losses
B30: 63,979 – 78,055 | C30: 0.12 | E30: 37,652 – 64,802 | F30: 21000
B31: 78,056 – 92,133 | C31: 0.13 | E31: 64,803 – 95,998 | F31: 24500
B32: 92,134 – 106,385 | C32: 0.14 | E32: 95,999 – 128,908 | F32: 28000

Sheet 11
A1: 11 | B1: Finished | G1: Navigator | J1: Solution
I2: (a) | J2: Perform a Quintiles Test. Sort the risks by order of increasing modification
A3: Points | B3: Given the following information about 10 risks for a manufacturing class: | M3: Premiums
A4: =INDEX('Point Grid'!B:B,MATCH('11'!A1,'Point Grid'!A:A,0)) -> 3.75 | J4: Risk | K4: Current Rank | L4: Proposed Rank | M4: Current Mod | N4: Proposed Mod
B5: Risk | C5: Type of Manufacturing | D5: Manual Premium | E5: Losses | F5: Current Modification | G5: Proposed Modification | J5: 1 | K5: =_xlfn.RANK.AVG(F7,$F$7:$F$16,1) -> 1 | L5: =_xlfn.RANK.AVG(G7,$G$7:$G$16,1) -> 1 | M5: =F7*D7 -> 650 | N5: =G7*D7 -> 500
J6: 2 | K6: =_xlfn.RANK.AVG(F8,$F$7:$F$16,1) -> 3 | L6: =_xlfn.RANK.AVG(G8,$G$7:$G$16,1) -> 2 | M6: =F8*D8 -> 750 | N6: =G8*D8 -> 550
B7: 1 | C7: Uses Robots | D7: 1000 | E7: 500 | F7: 0.65 | G7: 0.5 | J7: 3 | K7: 2 | L7: 3 | M7: 700 | N7: 700
B8: 2 | C8: Uses Robots | D8: 1000 | E8: 600 | F8: 0.75 | G8: 0.55 | J8: 4 | K8: 5 | L8: 4 | M8: 1000 | N8: 750
B9: 3 | C9: Made by hand | D9: 1000 | E9: 700 | F9: 0.7 | G9: 0.7 | J9: 5 | K9: 4 | L9: 5 | M9: 900 | N9: 950
B10: 4 | C10: Uses Robots | D10: 1000 | E10: 800 | F10: 1 | G10: 0.75 | J10: 6 | K10: 7 | L10: 6 | M10: 1150 | N10: 1050
B11: 5 | C11: Uses Robots | D11: 1000 | E11: 900 | F11: 0.9 | G11: 0.95 | J11: 7 | K11: 6 | L11: 7 | M11: 1100 | N11: 1250
B12: 6 | C12: Made by hand | D12: 1000 | E12: 1100 | F12: 1.15 | G12: 1.05 | J12: 8 | K12: 9 | L12: 8 | M12: 1250 | N12: 1500
B13: 7 | C13: Uses Robots | D13: 1000 | E13: 1200 | F13: 1.1 | G13: 1.25 | J13: 9 | K13: 8 | L13: 9 | M13: 1200 | N13: 1750
B14: 8 | C14: Made by hand | D14: 1000 | E14: 1500 | F14: 1.25 | G14: 1.5 | J14: 10 | K14: 10 | L14: 10 | M14: 1300 | N14: 2000
B15: 9 | C15: Made by hand | D15: 1000 | E15: 1600 | F15: 1.2 | G15: 1.75
B16: 10 | C16: Made by hand | D16: 1000 | E16: 1800 | F16: 1.3 | G16: 2 | J16: Current Plan
J17: Quintile | K17: Risk A | L17: Risk B | M17: Manual LR | N17: Standard LR
A18: (a) | B18: Evaluate the proposed experience rating plan compared to the current plan. | J18: 1 | K18: =INDEX($J$5:$J$14,MATCH(1,$K$5:$K$14,0)) -> 1 | L18: =INDEX($J$5:$J$14,MATCH(2,$K$5:$K$14,0)) -> 3 | M18: =(SUMIFS($E$7:$E$16,$B$7:$B$16,K18)+SUMIFS($E$7:$E$16,$B$7:$B$16,L18))/(SUMIFS($D$7:$D$16,$B$7:$B$16,K18)+SUMIFS($D$7:$D$16,$B$7:$B$16,L18)) -> 0.6 | N18: =(SUMIFS($E$7:$E$16,$B$7:$B$16,K18)+SUMIFS($E$7:$E$16,$B$7:$B$16,L18))/(SUMIFS($M$5:$M$14,$B$7:$B$16,K18)+SUMIFS($M$5:$M$14,$B$7:$B$16,L18)) -> 0.8888888889
A19: =INDEX('Point Grid'!$C$8:$I$30,MATCH($A$1,'Point Grid'!$A$8:$A$30,0),MATCH(A18,'Point Grid'!$C$7:$I$7,0)) -> 3 | J19: 2 | K19: =INDEX($J$5:$J$14,MATCH(3,$K$5:$K$14,0)) -> 2 | L19: =INDEX($J$5:$J$14,MATCH(4,$K$5:$K$14,0)) -> 5 | M19: =(SUMIFS($E$7:$E$16,$B$7:$B$16,K19)+SUMIFS($E$7:$E$16,$B$7:$B$16,L19))/(SUMIFS($D$7:$D$16,$B$7:$B$16,K19)+SUMIFS($D$7:$D$16,$B$7:$B$16,L19)) -> 0.75 | N19: =(SUMIFS($E$7:$E$16,$B$7:$B$16,K19)+SUMIFS($E$7:$E$16,$B$7:$B$16,L19))/(SUMIFS($M$5:$M$14,$B$7:$B$16,K19)+SUMIFS($M$5:$M$14,$B$7:$B$16,L19)) -> 0.9090909091
A20: 3 | J20: 3 | K20: =INDEX($J$5:$J$14,MATCH(5,$K$5:$K$14,0)) -> 4 | L20: =INDEX($J$5:$J$14,MATCH(6,$K$5:$K$14,0)) -> 7 | M20: 1 | N20: 0.9523809524
J21: 4 | K21: =INDEX($J$5:$J$14,MATCH(7,$K$5:$K$14,0)) -> 6 | L21: =INDEX($J$5:$J$14,MATCH(8,$K$5:$K$14,0)) -> 9 | M21: 1.35 | N21: 1.14893617
A22: (b) | B22: Evaluate the classification plan for this class. | J22: 5 | K22: =INDEX($J$5:$J$14,MATCH(9,$K$5:$K$14,0)) -> 8 | L22: =INDEX($J$5:$J$14,MATCH(10,$K$5:$K$14,0)) -> 10 | M22: 1.65 | N22: 1.294117647
A23: =INDEX('Point Grid'!$C$8:$I$30,MATCH($A$1,'Point Grid'!$A$8:$A$30,0),MATCH(A22,'Point Grid'!$C$7:$I$7,0)) -> 0.75
A24: 0.75 | J24: Proposed Plan
J25: Quintile | K25: Risk A | L25: Risk B | M25: Manual LR | N25: Standard LR
J26: 1 | K26: =INDEX($J$5:$J$14,MATCH(1,$L$5:$L$14,0)) -> 1 | L26: =INDEX($J$5:$J$14,MATCH(2,$L$5:$L$14,0)) -> 2 | M26: =(SUMIFS($E$7:$E$16,$B$7:$B$16,K26)+SUMIFS($E$7:$E$16,$B$7:$B$16,L26))/(SUMIFS($D$7:$D$16,$B$7:$B$16,K26)+SUMIFS($D$7:$D$16,$B$7:$B$16,L26)) -> 0.55 | N26: =(SUMIFS($E$7:$E$16,$B$7:$B$16,K26)+SUMIFS($E$7:$E$16,$B$7:$B$16,L26))/(SUMIFS($N$5:$N$14,$B$7:$B$16,K26)+SUMIFS($N$5:$N$14,$B$7:$B$16,L26)) -> 1.047619048
J27: 2 | K27: =INDEX($J$5:$J$14,MATCH(3,$L$5:$L$14,0)) -> 3 | L27: =INDEX($J$5:$J$14,MATCH(4,$L$5:$L$14,0)) -> 4 | M27: =(SUMIFS($E$7:$E$16,$B$7:$B$16,K27)+SUMIFS($E$7:$E$16,$B$7:$B$16,L27))/(SUMIFS($D$7:$D$16,$B$7:$B$16,K27)+SUMIFS($D$7:$D$16,$B$7:$B$16,L27)) -> 0.75 | N27: =(SUMIFS($E$7:$E$16,$B$7:$B$16,K27)+SUMIFS($E$7:$E$16,$B$7:$B$16,L27))/(SUMIFS($N$5:$N$14,$B$7:$B$16,K27)+SUMIFS($N$5:$N$14,$B$7:$B$16,L27)) -> 1.034482759
J28: 3 | K28: =INDEX($J$5:$J$14,MATCH(5,$L$5:$L$14,0)) -> 5 | L28: =INDEX($J$5:$J$14,MATCH(6,$L$5:$L$14,0)) -> 6 | M28: 1 | N28: =(SUMIFS($E$7:$E$16,$B$7:$B$16,K28)+SUMIFS($E$7:$E$16,$B$7:$B$16,L28))/(SUMIFS($N$5:$N$14,$B$7:$B$16,K28)+SUMIFS($N$5:$N$14,$B$7:$B$16,L28)) -> 1
J29: 4 | K29: =INDEX($J$5:$J$14,MATCH(7,$L$5:$L$14,0)) -> 7 | L29: =INDEX($J$5:$J$14,MATCH(8,$L$5:$L$14,0)) -> 8 | M29: 1.35 | N29: =(SUMIFS($E$7:$E$16,$B$7:$B$16,K29)+SUMIFS($E$7:$E$16,$B$7:$B$16,L29))/(SUMIFS($N$5:$N$14,$B$7:$B$16,K29)+SUMIFS($N$5:$N$14,$B$7:$B$16,L29)) -> 0.9818181818
J30: 5 | K30: =INDEX($J$5:$J$14,MATCH(9,$L$5:$L$14,0)) -> 9 | L30: =INDEX($J$5:$J$14,MATCH(10,$L$5:$L$14,0)) -> 10 | M30: 1.7 | N30: =(SUMIFS($E$7:$E$16,$B$7:$B$16,K30)+SUMIFS($E$7:$E$16,$B$7:$B$16,L30))/(SUMIFS($N$5:$N$14,$B$7:$B$16,K30)+SUMIFS($N$5:$N$14,$B$7:$B$16,L30)) -> 0.9066666667
J32: The manual loss ratios under the proposed plan are more dispersed than those in the current plan.
J33: This means the proposed plan does a better job at identifying differences between risks.
J34: The standard loss ratios for the current plan show an increasing trend, which implies the current
J35: plan does not place enough credibility on the actual experience. Further, the current
J36: plan has a wide range of standard loss ratios. This says the current plan does a poor job of
J37: correcting for differences between risks.
J38: Whereas the standard loss ratios for the proposed plan has a smaller range of standard loss
J39: ratios. However, it does have a decreasing trend in the standard loss ratios which implies
J40: the proposed plan places too much credibility on the actual experience.
J41: Overall, the proposed plan is better though.
I43: (b) | J43: Average Loss for "Uses Robots" risk | M43: =AVERAGEIF(C7:C16,"Uses Robots",E7:E16) -> 800
J45: Average Loss for "Made by hand" risk | M45: =AVERAGEIF(C7:C16,"Made by hand",E7:E16) -> 1340
J47: Since there is a significant difference between the average loss for the two types of
J48: manufacturing, the classification plan is not doing a good job of differentiating the loss
J49: potential between them. Should consider splitting the manufacturing type into two
J50: separate classes if there would be sufficient credibility in each class.

Sheet 12
A1: 12 | B1: Finished | G1: Navigator | I1: Solution
H2: (a) | I2: Since we're not given the expected loss we will use the average actual loss because
A3: Points | B3: An actuary is given the following sample of experience from a grouping of five similarly-sized risks: | I3: the risks are similar sized.
A4: =INDEX('Point Grid'!B:B,MATCH('12'!A1,'Point Grid'!A:A,0)) -> 2.5
C5: Risk | D5: Actual Loss | I5: Expected Loss = | K5: =AVERAGE(D6:D10) -> 85000
C6: 1 | D6: 85000
C7: 2 | D7: 127500 | I7: Risk | J7: Entry Ratio
C8: 3 | D8: 42500 | I8: 1 | J8: =D6/$K$5 -> 1
C9: 4 | D9: 63750 | I9: 2 | J9: =D7/$K$5 -> 1.5
C10: 5 | D10: 106250 | I10: 3 | J10: 0.5
I11: 4 | J11: 0.75
A12: (a) | B12: Construct a Table M of insurance charges and savings at entry ratios of 0 to 1.50 in multiples of 0.25. | I12: 5 | J12: 1.25
A13: =INDEX('Point Grid'!$C$8:$I$30,MATCH($A$1,'Point Grid'!$A$8:$A$30,0),MATCH(A12,'Point Grid'!$C$7:$I$7,0)) -> 1.5
A14: 1.5 | I14: Now create a table with a row for each entry ratio associated with a risk, and for each
I15: of the desired increments.
A16: (b) | B16: Briefly describe what the insurance charge at an entry ratio of 1.25 reflects.
A17: =INDEX('Point Grid'!$C$8:$I$30,MATCH($A$1,'Point Grid'!$A$8:$A$30,0),MATCH(A16,'Point Grid'!$C$7:$I$7,0)) -> 0.25 | I17: Entry Ratio | J17: # Risks | K17: # Risks > r | L17: % Risks > r | M17: Ins. Charge | N17: Ins. Savings
A18: 0.25 | I18: 0 | J18: =COUNTIF($J$8:$J$12,I18) -> 0 | K18: =COUNTIF($J$8:$J$12,">"&I18) -> 5 | L18: =K18/COUNT($I$8:$I$12) -> 1 | M18: =M19+L18*(I19-I18) -> 1 | N18: =M18+I18-1 -> 0
I19: 0.25 | J19: =COUNTIF($J$8:$J$12,I19) -> 0 | K19: =COUNTIF($J$8:$J$12,">"&I19) -> 5 | L19: =K19/COUNT($I$8:$I$12) -> 1 | M19: 0.75 | N19: =M19+I19-1 -> 0
B20: Suppose the Table M constructed above is used to price a book of Workers' Compensation | I20: 0.5 | J20: 1 | K20: 4 | L20: 0.8 | M20: 0.5 | N20: 0
B21: retrospectively rated business. The following table of actual losses reflects the experience of this | I21: 0.75 | J21: 1 | K21: 3 | L21: 0.6 | M21: 0.3 | N21: 0.05
B22: book: | I22: 1 | J22: 1 | K22: 2 | L22: 0.4 | M22: 0.15 | N22: 0.15
C23: Risk | D23: Actual Loss | I23: 1.25 | J23: 1 | K23: 1 | L23: 0.2 | M23: =M24+L23*(I24-I23) -> 0.05 | N23: 0.3
C24: 1 | D24: 12000 | I24: 1.5 | J24: 1 | K24: 0 | L24: 0 | M24: 0 | N24: 0.5
C25: 2 | D25: 42500
C26: 3 | D26: 63750 | I26: Here we used
C27: 4 | D27: 106250 | I27: φ(1.5) = 0
C28: 5 | D28: 275000 | I28: φ(ri) = φ(ri+1) + (ri+1 - ri)*(% > ri)
I29: ψ(r) = φ(r) + r - 1
A30: (c) | B30: Evaluate the appropriateness of using the Table M constructed in part (a) above.
A31: =INDEX('Point Grid'!$C$8:$I$30,MATCH($A$1,'Point Grid'!$A$8:$A$30,0),MATCH(A30,'Point Grid'!$C$7:$I$7,0)) -> 0.75 | B31: Provide two reasons in support of the conclusion. | H31: (b) | I31: The insurance charge at an entry ratio of 1.25 reflects the excess portion of expected losses
A32: 0.75 | I32: that are above 1.25 times the expected loss. In the above example it is
I33: the amount of loss in excess of 1.25*85,000 = 106,250.
H35: (c) | I35: Average loss for book = | K35: =AVERAGE(D24:D28) -> 99900
I36: Risk | J36: Entry Ratio
I37: 1 | J37: =D24/$K$35 -> 0.1201201201
I38: 2 | J38: =D25/$K$35 -> 0.4254254254
I39: 3 | J39: 0.6381381381
I40: 4 | J40: 1.063563564
I41: 5 | J41: 2.752752753
I43: It is not appropriate to use the Table M calculated in part (a) because
I44: the two books of business have significantly different expected losses and the
I45: new book has only one entry ratio higher than 1.25, yet the initial book had two.
I46: The greater the expected loss, the less variation is expected in the loss. This
I47: results in a flatter curve that gives smaller insurance charges. Using the original
I48: Table M will likely overstate the insurance charge.

Sheet 13
A1: 13 | B1: Finished | F1: Navigator | H1: Solution
G2: (a) | H2: The converted insurance charge is cI = c(φ(rmax) - ψ(rmin))
A3: Points | B3: A risk is written using a retrospective rating plan with the following characteristics: | H3: c = | I3: =B8 -> 1.085
A4: =INDEX('Point Grid'!B:B,MATCH('13'!A1,'Point Grid'!A:A,0)) -> 2.5 | B4: 10000000 | C4: Standard Premium | H4: Expected loss = | J4: =B4*B5 -> 6000000
B5: 0.6 | C5: Expected Loss Ratio
B6: 0.8 | C6: Loss Ratio at Maximum Premium | H6: Notice the graph is given in terms of loss ratio rather than entry ratios. So φ(rmax) corresponds
B7: 0.2 | C7: Loss Ratio at Minimum Premium | H7: to the area above an 80% loss ratio divided by the expected loss ratio, and ψ(rmin) is the area
B8: 1.085 | C8: Loss Conversion Factor | H8: below the 20% loss ratio divided by the expected loss ratio.
B9: 0.97 | C9: Provision for Losses and Total Expenses Exclusive of Taxes
H10: φ(rmax) = | I10: =((90%-70%)*(1-80%) + (100% - 90%)*(120% - 80%))/B5 -> 0.1333333333
B11: The following Lee Diagram depicts actual experience from a sample of similarly-sized risks | H11: ψ(rmin) = | I11: =((20% - 0%)*(20%-0%))/B5 -> 0.06666666667
B12: and similar to the risk in question:
H13: converted insurance charge = | J13: =I3*J4*(I10-I11) -> 434000
G15: (b) | H15: R = (B + cL)*T where T is the Tax multiplier, B is the Basic premium and L is the ratable loss.
H17: Basic premium B = e - (c - 1)*E + cI
H18: where e is the expense provision in dollars.
H19: e = (Provision for Loss and Expense - Expected Loss Ratio)*Standard Premium
H20: e = | I20: =(B9-B5)*B4 -> 3700000
H22: B = | I22: =I20-(I3-1)*J4+J13 -> 3624000
H24: R = | I24: 12500000 | J24: (given)
H26: Actual loss ratio = ultimate loss / standard premium
H27: =8700000/B4 -> 0.87
A28: (a) | B28: Determine the converted insurance charge for this plan. | H28: This is greater than the loss ratio allowed at maximum premium, so cap ratable loss at 80%.
A29: =INDEX('Point Grid'!$C$8:$I$30,MATCH($A$1,'Point Grid'!$A$8:$A$30,0),MATCH(A28,'Point Grid'!$C$7:$I$7,0)) -> 1.25 | H29: Therefore, L = | J29: =80%*B4 -> 8000000
A30: 1.25
H31: Solve for the Tax Multiplier
A32: (b) | B32: The insured's actual ultimate losses are $8,700,000 and the final retrospective premium is | H32: T = R / (B + cL) = | J32: =I24/(I22+I3*J29) -> 1.015929779
A33: =INDEX('Point Grid'!$C$8:$I$30,MATCH($A$1,'Point Grid'!$A$8:$A$30,0),MATCH(A32,'Point Grid'!$C$7:$I$7,0)) -> 1.25 | B33: $12,500,000. Determine the tax multiplier that was used in the rating of this plan.
A34: 1.25

Sheet 14
A1: 14 | B1: Finished | G1: Navigator | I1: Solution
H2: (a) | I2: Draw a Lee Diagram that shows the unlimited and limited loss curves as well as the
A3: Points | B3: A retrospective rated policy has both a loss limitation and a maximum premium. | I3: entry ratio at maximum premium.
A4: =INDEX('Point Grid'!B:B,MATCH('14'!A1,'Point Grid'!A:A,0)) -> 1.75
A6: (a) | B6: Demonstrate how the charges for the loss limitation and the maximum premium overlap.
A7: =INDEX('Point Grid'!$C$8:$I$30,MATCH($A$1,'Point Grid'!$A$8:$A$30,0),MATCH(A6,'Point Grid'!$C$7:$I$7,0)) -> 0.5
A8: 0.5
A10: (b) | B10: Explain how the overlap is handled differently when using Table M versus Table L.
A11: =INDEX('Point Grid'!$C$8:$I$30,MATCH($A$1,'Point Grid'!$A$8:$A$30,0),MATCH(A10,'Point Grid'!$C$7:$I$7,0)) -> 0.5
A12: 0.5
A14: (c) | B14: An actuary is pricing a large Workers' Compensation policy with a fixed loss limit of $100,000.
A15: =INDEX('Point Grid'!$C$8:$I$30,MATCH($A$1,'Point Grid'!$A$8:$A$30,0),MATCH(A14,'Point Grid'!$C$7:$I$7,0)) -> 0.75 | B15: Recommend a table of insurance charges, Table M or Table L, that the actuary should use and
A16: 0.75 | B16: provide two reasons supporting the recommendation.
I21: When there is an occurrence limit as well as an aggregate limit, the occurrence limit makes
I22: it less likely the aggregate limit will be hit. So the charge for the aggregate limit should
I23: be reduced to avoid overlap.
H25: (b) | I25: When using a Table M the approach involves adjusting the expected loss to be larger via
I26: the ICRLL adjustment. This shifts the aggregate loss distribution to a flatter curve, reducing
I27: the impact of the overlap.
I28: However, a Table L calculates a charge for each of the occurrence limit and aggregate limit.
H30: (c) | I30: Recommend using Table M because:
I31: • A Table M is based on countrywide data whereas a Table L uses California taxes. We don't
I32: know where the policy is located.
I33: • A Table M can be updated easily to account for inflation by adjusting the mapping between
I34: expected losses and the expected loss groups.

Sheet 15
A1: 15 | B1: Finished | H1: Navigator | K1: Solution
J2: (a) | K2: The premium for an excess Workers' Compensation policy is given by
A3: Points | B3: Given the following information about a Workers' Compensation book of business:
A4: =INDEX('Point Grid'!B:B,MATCH('15'!A1,'Point Grid'!A:A,0)) -> 1.75
K6: Recall this type of policy only handles and pays out on claims above the deductible.
K8: So at maximum premium we have
K9: 100,000 = | L9: (Expected Excess Loss * 1.05 + 840,000*2%) / (1 - 5% - 3% - -8.8%)
K11: Solving for the expected excess loss at maximum premium yields
K12: Expected Excess Loss at Max. Premium = | O12: =(100000*(1-B24-B25-B26)-B19*B22)/(1+B21) -> 80000
K14: Using the graph provided we can estimate the expected unlimited loss.
K15: Notice here we're using "loss" to mean Loss + ALAE
K17: Expected Unlimited Loss & ALAE = | O17: =(100*(10%-0%)+200*(30%-10%)+300*(40%-30%)+500*(60%-40%)+600*(70%-60%)+800*(90%-70%)+1000*(100%-90%))*1000 -> 500000
B19: 840000 | C19: Standard Premium | K19: The ratio of expected excess loss at maximum premium to expected unlimited loss is
B20: 0.02 | C20: Loss based assessment factor | K20: =O12/O17 -> 0.16
B21: 0.05 | C21: Ratio of ULAE to Loss
B22: 0.02 | C22: General overhead expense | K22: The excess ratio at deductible d is defined as the average excess loss above the deductible
B23: 0.04 | C23: Risk load for credit risk | K23: divided by the expected unlimited loss.
B24: 0.05 | C24: Acquisition expense
B25: 0.03 | C25: Taxes | K25: We need to find a deductible d that produces an excess ratio of 0.16
B26: -0.088 | C26: Profit
K27: Using trial and error we get when d = $600,000
A28: (a) | B28: Calculate the deductible for an excess Workers' Compensation policy that minimizes the | K28: Excess ratio @ $600,000 = | N28: =((800000-600000)*(90%-70%)+(1000000-600000)*(100%-90%))/O17 -> 0.16
A29: =INDEX('Point Grid'!$C$8:$I$30,MATCH($A$1,'Point Grid'!$A$8:$A$30,0),MATCH(A28,'Point Grid'!$C$7:$I$7,0)) -> 1.25 | B29: insured's loss retention with a maximum premium of $100,000.
A30: 1.25 | K30: So the required deductible is $600,000.
A32: (b) | B32: Contrast the profit load in a large dollar deductible (LDD) policy to the profit load in an | J32: (b) | K32: The profit load for a large dollar deductible plan is usually higher than that for an excess Workers'
A33: =INDEX('Point Grid'!$C$8:$I$30,MATCH($A$1,'Point Grid'!$A$8:$A$30,0),MATCH(A32,'Point Grid'!$C$7:$I$7,0)) -> 0.5 | B33: excess Workers' Compensation policy. | K33: Compensation plan because the LDD plan competes on both price and service while the excess
A34: 0.5 | K34: WC plan competes on price alone.
K36: Alice: "This was a tricky question because excess Workers' Compensation policies are
K37: said to have a retention rather than a deductible. Make sure you state any assumptions
K38: you make on the exam."

Sheet 16
A1: 16 | B1: Finished | F1: Navigator | I1: Solution
H2: (a) | I2: Expiring Structure
A3: Points | B3: An actuary is given the following expiring policy information for a Workers' Compensation
A4: =INDEX('Point Grid'!B:B,MATCH('16'!A1,'Point Grid'!A:A,0)) -> 3.75 | B4: Large Dollar Deductible policy:
B5: 500000 | C5: Expected Total Loss & ALAE
B6: 100000 | C6: Deductible | I6: Where LBA is the loss based assessment factor.
B7: 0.4 | C7: Percentage of Loss & ALAE Excess of $100,000
B8: 0.2 | C8: Percentage of Loss & ALAE Excess of $200,000 | I8: The expiring policy has a $100,000 deductible so the
B9: 0.05 | C9: ULAE | I9: Expected Excess Loss = | L9: =B7*B5 -> 200000
B10: 0.03 | C10: Loss Based Assessment Factor
B11: 0.17 | C11: Profit and Variable Expenses | I11: Hence the expected limited loss = | M11: =B5-L9 -> 300000
B12: 15000 | C12: Fixed Expense
B13: 300000 | C13: Aggregate Deductible | I13: Since we have an aggregate deductible and a per-occurrence deductible we need to calculate
I14: a limited entry ratio = Aggregate Deductible / Expected Limited Loss
B15: There are no changes to these expenses and profit provision. The table of Insurance
B16: Charges is displayed below: | I16: Limited Entry Ratio = | L16: =B13/M11 -> 1
B17: Modified Table M for Similarly Sized Policies
C18: Deductible | I18: Using the Modified Table M to look up the limited entry ratio and deductible yields
B19: Entry Ratio | C19: 100000 | D19: 200000 | E19: 300000 | F19: 400000 | I19: an insurance charge of | L19: =C21 -> 0.33
B20: 0.5 | C20: 0.45 | D20: 0.48 | E20: 0.495 | F20: 0.505
B21: 1 | C21: 0.33 | D21: 0.35 | E21: 0.365 | F21: 0.37 | I21: Expiring LDD Premium = | L21: =((L9+L19*M11)+B5*(B9+B10)+B12)/(1-B11) -> 426506.0241
B22: 1.5 | C22: 0.27 | D22: 0.303 | E22: 0.325 | F22: 0.35
B23: 2 | C23: 0.185 | D23: 0.24 | E23: 0.26 | F23: 0.286 | I23: Option 1 Pricing
I24: $200,000 deductible so the expected excess loss is | N24: =B8*B5 -> 100000
B25: The insured would like to retain more risk and requests the price of the following options: | I25: Expected Limited Loss = | L25: =B5-N24 -> 400000
B26: Option 1: Deductible of $200,000 with an aggregate deductible of $400,000.
I27: New aggregate deductible = | L27: 400000
B28: Option 2: Excess Policy with self-insured retention of $200,000 on a per-occurrence basis. | I28: Limited Entry Ratio = | L28: =L27/L25 -> 1
I29: Using the Modified Table M to look up the insurance charge of | O29: =D21 -> 0.35
A30: (a) | B30: Calculate the difference in price between Option 1 and the expiring structure.
A31: =INDEX('Point Grid'!$C$8:$I$30,MATCH($A$1,'Point Grid'!$A$8:$A$30,0),MATCH(A30,'Point Grid'!$C$7:$I$7,0)) -> 2.75 | B31: Use linear interpolation as needed. | I31: Option 1 LDD Premium = | L31: =((N24+O29*L25)+B5*(B9+B10)+B12)/(1-B11) -> 355421.6867
A32: 2.75
I33: ="So Option 1 is " &TEXT(L21-L31,"$0,000.00")&" cheaper than the expiring policy." -> So Option 1 is $71,084.34 cheaper than the expiring policy.
A34: (b) | B34: The insurer observed an upward trend of ground-up losses in the insured's industry for
A35: =INDEX('Point Grid'!$C$8:$I$30,MATCH($A$1,'Point Grid'!$A$8:$A$30,0),MATCH(A34,'Point Grid'!$C$7:$I$7,0)) -> 1 | B35: the most recent year, but is unsure if this trend will continue in the future. Based on this | H35: (b) | I35: Recommend Option 1 from the insurer's perspective because an upward trend in the ground-up
A36: 1 | B36: observation, recommend one of the two options for the insurer and fully support the | I36: losses will be amplified in an excess layer. This is because claims already in the excess layer
B37: recommendation. | I37: have the trend apply entirely in the excess layer, while claims just below the layer will be
I38: pushed into the excess layer. The insurer will handle all claims under the LDD policy so has
I39: an incentive to keep costs down and offset the observed trend.
I40: Further, since LDD policies compete on both price and service, they could support a more
I41: conservative profit and expense load which would hedge against the observed trend.

Sheet 17
A1: 17 | B1: Finished | H1: Navigator | K1: Solution
J2: (a) | K2: E[PT] = | L2: =(G21+D21)/(H21+E21) -> 0.01125
A3: Points | B3: The original 2016 Q17 is no longer on the Exam 8 Syllabus. It has been replaced with 2015 Q5 which has | K3: E[F] = | L3: =(C21+F21)/(E21+H21) -> 0.002
A4: =INDEX('Point Grid'!B:B,MATCH('17'!A1,'Point Grid'!A:A,0)) -> 2.5 | B4: the same point value.
K5: E[Class 2 PT] = E[PT] + wF*(F2 - E[F]) + wPT*(PT2 - E[PT])
B6: An actuary estimated the loss cost for Workers' Compensation insurance using a | K6: Here F means Fatal claims, PT means Permanent Total claims, and a subscript 2
B7: multi-dimensional credibility method. | K7: indicates the actual observed class 2 value
B9: Given the following: | K9: wF = | L9: =C25 -> 0.2
B10: • There were 2 classes in Hazard Group X. | K10: wPT = | L10: =D25 -> 0.3
B11: • There were no major or minor permanent partial losses.
B12: • Premium information was not available. | K12: F2 = | L12: =(F20+C20)/(E20+H20) -> 0.0025
B13: • Holdout sample of odd years was used as a proxy of the true mean. | K13: PT2 = | L13: =(G20+D20)/(E20+H20) -> 0.0115
B15: Claim Count by Injury Type for Hazard Group X | K15: E[Class 2 PT] = | M15: =L2+L9*(L12-L3)+L10*(L13-L2) -> 0.011425
C16: Even Year 1 | F16: Even Year 2
C17: Fatal (F) | D17: Permanent Total (PT) | E17: Temporary Total (TT) | F17: Fatal (F) | G17: Permanent Total (PT) | H17: Temporary Total (TT) | J17: (b) | K17: Predict the frequency for each class using the credibility procedure.
B18: Class | K18: Rank the classes from smallest to largest by credibility relativity.
B19: 1 | C19: 2 | D19: 10 | E19: 1000 | F19: 1 | G19: 12 | H19: 1000 | K19: Group the classes into quintiles.
B20: 2 | C20: 3 | D20: 10 | E20: 1000 | F20: 2 | G20: 13 | H20: 1000 | K20: Compute the sum of squared errors using the holdout sample for each of
B21: Total | C21: =SUM(C19:C20) -> 5 | D21: 20 | E21: 2000 | F21: 3 | G21: 25 | H21: 2000 | K21: • The credibility procedure
K22: • The raw data
B23: Optimal Weights for Estimation of Permanent Total Injury Ratio | K23: • The hazard group relativity (all class average)
C24: Fatal | D24: Permanent Total | K24: If the credibility procedure is accurate then the credibility procedure should
C25: 0.2 | D25: 0.3 | K25: have the lowest sum of squared errors.
A27: (a) | B27: Determine the ratio of permanent total injury to temporary total injury for Class 2 using a | J27: (c) | K27: Each class is relatively small compared to the hazard group and the results can
A28: =INDEX('Point Grid'!$C$8:$I$30,MATCH($A$1,'Point Grid'!$A$8:$A$30,0),MATCH(A27,'Point Grid'!$C$7:$I$7,0)) -> 1 | B28: multi-dimensional credibility method. | K28: be volatile from class to class. Grouping into quintiles allows for a more
A29: 1 | K29: credible evaluation of the results.
A31: (b) | B31: Fully describe the steps involved in performing a quintile test to evaluate the actuary's work.
A32: =INDEX('Point Grid'!$C$8:$I$30,MATCH($A$1,'Point Grid'!$A$8:$A$30,0),MATCH(A31,'Point Grid'!$C$7:$I$7,0)) -> 1
A33: 1
A35: (c) | B35: Briefly describe one shortcoming of the individual class sum of squared errors test and briefly describe
A36: =INDEX('Point Grid'!$C$8:$I$30,MATCH($A$1,'Point Grid'!$A$8:$A$30,0),MATCH(A35,'Point Grid'!$C$7:$I$7,0)) -> 0.5 | B36: why the quintiles test is a better way to evaluate the actuary's work.
A37: 0.5

Sheet 18
A1: 18 | B1: Finished | I1: Navigator | M1: Solution
L2: (a) | M2: Hazard Module:
A3: Points | B3: Catastrophe models were built to assist the insurance industry in quantifying the risk of | M3: Epistemic risk is uncertainty due to limited scientific knowledge about the occurrence and strength
A4: =INDEX('Point Grid'!B:B,MATCH('18'!A1,'Point Grid'!A:A,0)) -> 2 | B4: natural disasters. | M4: of earthquakes.
M5: Inventory Module:
A6: (a) | B6: For any two of the four basic modules of a catastrophe model, provide an example of | M6: Epistemic risk is uncertainty due to insufficient knowledge of individual building construction and
A7: =INDEX('Point Grid'!$C$8:$I$30,MATCH($A$1,'Point Grid'!$A$8:$A$30,0),MATCH(A6,'Point Grid'!$C$7:$I$7,0)) -> 1 | B7: epistemic risk. | M7: lack of accurate contents knowledge.
A8: 1
L9: (b) | M9: Hazard Module:
A10: (b) | B10: For any two of the four basic modules of a catastrophe model, provide an example of | M10: Aleatory risk is randomness in the process, such as an earthquake being much stronger or weaker
A11: =INDEX('Point Grid'!$C$8:$I$30,MATCH($A$1,'Point Grid'!$A$8:$A$30,0),MATCH(A10,'Point Grid'!$C$7:$I$7,0)) -> 1 | B11: aleatory risk. | M11: than expected.
A12: 1 | M12: Loss Module:
M13: The losses on a homeowners portfolio after an earthquake might be higher than expected
M14: due to random chance rather than an underlying cause that wasn't included in the model.

Sheet 19
A1: 19 | B1: Finished | G1: Navigator | J1: Solution
I2: (a) | J2: Option 1
A3: Points | B3: In order for an insurance company to increase its return on capital, two reinsurance | J3: Ceded Loss | M3: Ceded ALAE = (Ceded Loss / Total Loss )*(Total ALAE)
A4: =INDEX('Point Grid'!B:B,MATCH('19'!A1,'Point Grid'!A:A,0)) -> 3 | B4: options are being considered: | J4: Claim 1 | K4: =MIN(F18-5*10^6,5*10^6) -> 2500000 | M4: Claim 1 | N4: =K4/F18*G18 -> 500000
B5: i. $5 million excess of $5 million per risk: | J5: Claim 2 | K5: =MIN(F19-5*10^6,5*10^6) -> 5000000 | M5: Claim 2 | N5: =K5/F19*G19 -> 250000
B6: • ALAE pro-rata | J6: Total | K6: =SUM(K4:K5) -> 7500000 | M6: Total | N6: =SUM(N4:N5) -> 750000
B7: • Rate = 18% of premium
J8: A 1-in-100 year probable maximum loss corresponds to a 1% aggregate exceedance probability.
B9: ii. 20% Quota Share: | J9: Using the net of excess of loss AEP curve, this corresponds to a loss of at least $70 million.
B10: • Ceding commission of 30% | J10: 1-in-100 year loss | L10: 70000000
B11: • Maximum ceded loss ratio of 150%
J12: The ceded premium for the excess of loss treaty is | O12: =18%*B16 -> 9000000
B13: The insurance company must hold capital to support a 1-in-100 year Probable Maximum | J13: The retained premium for the excess of loss treaty is | P13: =B16-O12 -> 41000000
B14: Loss. Additionally, the following information regarding the insurance company's | J14: The retained Loss & ALAE is | M14: =B18-K6-N6 -> 21750000
B15: performance last year is given:
B16: 50000000 | C16: Premium | E16: Claims greater than $5,000,000 | J16: Option 1 Profit = | L16: =P13-M14-B17 -> 4250000
B17: 15000000 | C17: Expenses | F17: Loss | G17: ALAE | J17: The Return on Equity for Option 1 is the profit divided by the capital the insurer must hold.
B18: 30000000 | C18: Total Loss & ALAE | E18: Claim 1 | F18: 7500000 | G18: 1500000
B19: 0.05 | C19: Return on Capital | E19: Claim 2 | F19: 10000000 | G19: 500000 | J19: Option 1 ROE = | L19: =L16/L10 -> 0.06071428571
J20: Return on Capital = | L20: =B19 -> 0.05
B21: The Aggregate Exceedance Probability curve for the insurance company is shown below: | J21: Impact on ROE = | L21: =L19-L20 -> 0.01071428571
J23: Option 2
J24: Implicit ALAE is included in the quota share agreement.
J25: Ceded Premium = | M25: =20%*B16 -> 10000000
J26: Maximum Ceded Loss & ALAE = | M26: =150%*M25 -> 15000000
J27: Ceded Loss & ALAE = | M27: =MIN(M26,20%*B18) -> 6000000
J29: Retained Premium = | M29: =B16-M25 -> 40000000
J30: Retained Loss & ALAE = | M30: =B18-M27 -> 24000000
J31: Expenses = | M31: =B17 -> 15000000
J32: Ceding Commission = | M32: =30%*M25 -> 3000000
J33: Option 2 Profit = | M33: =M29-M30-M31+M32 -> 4000000
J35: Using the graph provided we have
J36: With no reinsurance and a 1-in-100 year PML requirement the insurer would experience a $100 million loss
J37: With the quota share treaty in place, the insurer would experience a $100m - $15m = $85 million loss.
A38: (a) | B38: Determine the impact each reinsurance option would have had on last year's return on
A39: =INDEX('Point Grid'!$C$8:$I$30,MATCH($A$1,'Point Grid'!$A$8:$A$30,0),MATCH(A38,'Point Grid'!$C$7:$I$7,0)) -> 3 | B39: capital. Ignore investment income and taxes. | J39: Option 2 ROE = | L39: =M33/85000000 -> 0.04705882353
A40: 3 | J40: Return on Capital | L40: =B19 -> 0.05
J41: Impact on ROE = | L41: =L39-L40 -> -0.002941176471
J43: Hence Option 1 provides an increase to the return on equity whereas Option 2 provides a decrease.

Sheet 20
A1: 20 | B1: Finished | F1: Navigator | I1: Solution
H2: (a) | J2: A | K2: B | L2: C | M2: Primary
A3: Points | B3: A primary insurer has entered into property catastrophe excess of loss treaties with three | I3: Loss | J3: 100 xs 200 | K3: 100 xs 300 | L3: 100 xs 400 | M3: Insurer | N3: Total
A4: =INDEX('Point Grid'!B:B,MATCH('20'!A1,'Point Grid'!A:A,0)) -> 3 | B4: reinsurers. The terms of the treaties are as follows: | I4: 1 | J4: =MAX(0,MIN(100,D13-200))*100% -> 100 | K4: =MAX(0,MIN(100,D13-300))*100% -> 80 | L4: =MAX(0,MIN(100,D13-400))*100% -> 0 | M4: =D13-SUM(J4:L4) -> 200 | N4: =SUM(J4:M4) -> 380
I5: 2 | J5: =MAX(0,MIN(100,D14-200))*100% -> 60 | K5: =MAX(0,MIN(100,D14-300))*100% -> 0 | L5: =MAX(0,MIN(100,D14-400))*100% -> 0 | M5: =D14-SUM(J5:L5) -> 200 | N5: =SUM(J5:M5) -> 260
B6: Reinsurer A: 100% of $100 excess of $200 written at a nominal rate on line of 10%. | I6: 3 | J6: =MAX(0,MIN(100-J5,D15-200))*100% -> 40 | K6: =MAX(0,MIN(100-K5,D15-300))*100% -> 100 | L6: =MAX(0,MIN(100-L5,D15-400))*100% -> 100 | M6: 360 | N6: 600
B7: Reinsurer B: 100% of $100 excess of $300 written at a nominal rate on line of 7%.
B8: Reinsurer C: 100% of $100 excess of $400 written at a nominal rate on line of 4%. | I8: For Loss 3, there is no further reinstatement, so all that is available is what is left of the layer.
B10: Each treaty specifies a single mandatory reinstatement that is 100% pro-rata as to amount. | H10: (b) | I10: Premium = Rate on Line % * Limit
B11: The primary insurer incurs three covered loss events during the contract period: | I11: Reinstatement Premium = Premium * Layer Coverage % * (Covered Loss / Limit)
C12: Loss Number | D12: Loss Amount | I12: Assume only one reinstatement is possible (the mandatory reinstatement)
C13: 1 | D13: 380 | I13: Notice reinstatements are 100% pro-rata as to amount, a reinstatement fee is assessed after each
C14: 2 | D14: 260 | I14: loss until the original treaty and its replacement have been exhausted.
C15: 3 | D15: 600
I16: Reinsurer A
A17: (a) | B17: For each loss event, calculate the amount of loss retained by the primary insurer. | I17: Premium = | K17: =10%*100 -> 10
A18: =INDEX('Point Grid'!$C$8:$I$30,MATCH($A$1,'Point Grid'!$A$8:$A$30,0),MATCH(A17,'Point Grid'!$C$7:$I$7,0)) -> 0.75 | I18: Event 1 reinstatement premium = | L18: =K17*100%*J4/100 -> 10
A19: 0.75 | I19: Event 2, no reinstatement fee as coverage not exhausted
I20: Event 3, no reinstatements left.
A21: (b) | B21: For each loss event, calculate the amount of reinstatement premium owed by the primary | I21: Total Reinstatement Premium for Reinsurer A = | N21: =L18 -> 10
A22: =INDEX('Point Grid'!$C$8:$I$30,MATCH($A$1,'Point Grid'!$A$8:$A$30,0),MATCH(A21,'Point Grid'!$C$7:$I$7,0)) -> 2.25 | B22: insurer to each of its reinsurers.
A23: 2.25 | I23: Reinsurer B
I24: Premium = | K24: =7%*100 -> 7
I25: Event 1 reinstatement premium = | L25: =K24*K4/100*100% -> 5.6 | M25: Treaty not exhausted
I26: Event 2 reinstatement premium = | L26: 0 | M26: Loss below treaty
I27: Event 3 reinstatement premium = | L27: =K24*(100-K4)/100*100% -> 1.4 | M27: Exhausts $20 from original treaty, and $80 from reinstatement
I28: Total Reinstatement Premium for Reinsurer B = | N28: =SUM(L25:L27) -> 7
I30: Reinsurer C
I31: Premium = | K31: =4%*100 -> 4
I32: Event 1 reinstatement premium = | L32: 0 | M32: Loss below layer
I33: Event 2 reinstatement premium = | L33: 0 | M33: Loss below layer
I34: Event 3 reinstatement premium = | L34: =K31*L6/100*100% -> 4
I35: Total Reinstatement Premium for Reinsurer C = | N35: =SUM(L32:L34) -> 4

Sheet 21
A1: 21 | B1: Finished | E1: Navigator | H1: Solution
G2: (a) | H2: Insured Value Range | K2: Average in Range
A3: Points | B3: An insurance company insures high value homes and plans to increase the maximum | H3: 1m to 4m | K3: =AVERAGE(1*10^6,4*10^6) -> 2500000
A4: =INDEX('Point Grid'!B:B,MATCH('21'!A1,'Point Grid'!A:A,0)) -> 4 | B4: property value they will insure next year. The company is considering purchasing a new
B5: $4,000,000 excess of $4,000,000 reinsurance treaty. The reinsurer is given the following | H5: Percent of Cumulative Loss under $1 million
B6: limit profile: | H6: E[X; 1million] / E[X] = | K6: =(E17+D18*1000000)/E19 -> 0.8
C8: Insured Value Range | D8: Experience Period On-Level Premium | E8: Treaty Subject Premium | H8: Average Percent of Insured Value at $1 million
H9: =10^6/K3 -> 0.4
C10: $1,000,000 to $4,000,000 | D10: 100000000 | E10: 25000000
C11: $4,000,001 to $8,000,000 | D11: 0 | E11: 5000000 | H11: The above tells us that 40% of the insured value has 80% of the cumulative loss.
H12: This matches better with the Y4 curve (40% of the insured value has 82% of the cumulative
B13: A reinsurance actuary has trended and developed the portfolio's historical losses for the | H13: loss) rather than the Y3 curve.
B14: Experience Period:
C15: Loss Size | D15: Number of Claims | E15: Experience Period Ground-up Loss | H15: Use the Y4 curve, so c = 4. Then
H16: b(4) = | I16: =EXP(3.1-0.15*4*(1+4)) -> 1.105170918
C17: Less than $1,000,000 | D17: 200 | E17: 22000000 | H17: g(4) = | I17: =EXP(4*(0.78+0.12*4)) -> 154.470015
C18: Greater than $1,000,000 | D18: 10 | E18: 18000000
C19: Total | D19: 210 | E19: 40000000 | H19: We want to price the layer 4million to 8 million.
H20: Average insured value in range
B21: The actuary is unsure if a Swiss Re Y3 or Y4 exposure curve is a better fit. The following | H21: =AVERAGE(4*10^6, 8*10^6) -> 6000000
B22: MBBEFD exposure curve formulas are available along with the following information:
H23: Maximum exposure is G(8million/6million) = G(1.333) = | M23: 1
H24: Minimum exposure is G(4million/6million) = G(0.667) = | M24: =LN(((I17-1)*I16+(1-I17*I16)*I16^0.6666667)/(1-I16))/LN(I17*I16) -> 0.9184262016
D26: % of Cumulative Loss | H26: Ground up loss ratio = | K26: =E19/SUM(D10:D11) -> 0.4
C27: % of Insured Value | D27: Y3 | E27: Y4
C28: 0.25 | D28: 0.6 | E28: 0.73 | H28: Losses covered by treaty = | K28: =(M23-M24)*E11*K26 -> 163147.5969
C29: 0.4 | D29: 0.72 | E29: 0.82
C30: 1 | D30: 1 | E30: 1 | H30: Ceded Premium = | K30: =1%*SUM(E10:E11) -> 300000
H31: Ceded Loss Ratio = | K31: =K28/K30 -> 0.5438253229
A32: (a) | B32: Given a proposed treaty rate of 1% of total subject premium, calculate the expected ceded
A33: =INDEX('Point Grid'!$C$8:$I$30,MATCH($A$1,'Point Grid'!$A$8:$A$30,0),MATCH(A32,'Point Grid'!$C$7:$I$7,0)) -> 4 | B33: loss ratio for the new treaty.
A34: 4
